{"text_format":"1","workbook":"xlsx","n_sheets":16,"sheets":["Start","01_Stundensatz_A","01_Stundensatz_L","02_Handelskalkulation_A","02_Handelskalkulation_L","03_Entgeltrechnung_A","03_Entgeltrechnung_L","04_Break_even_1A","04_Break_even_1L","04_Break_even_1G","05_Break_even_2A","05_Break_even_2L","05_Break_even_2G","06_Make_or_buy_A","06_Make_or_buy_L","Blanko1"],"not_rendered":{"charts":2,"images":6,"macros":1,"external_links":0,"defined_names":45,"comments":2,"pivot_tables":0},"unopened":[],"bounds":{"document_bytes":16777216,"sheet_cells":100000,"rows_first":2000,"rows_last":500,"rows_between":2000,"halvings":0,"cell_chars":16384,"cell_head_chars":4096},"cells_cut":0,"cells_raw":0,"read":"whole","date_system":"1900"}

{"sheet":"Start","index":0,"n_rows":21,"n_cols":31,"rows_kept":21,"cut":false,"hidden":false,"merged":[[19,5,19,7],[20,5,20,7]]}
[null,null,null,null,null,null,null,null,null,null,null,null,null,null,null,null,null,null,null,null,null,null,null,null,null,null,null,null,null,0,"Start"]
[null,null,null,null,null,null,null,"Modul 02 : Unternehmensgründung",null,null,null,null,null,null,null,null,null,null,null,null,null,null,null,null,null,null,null,null,null,{"$f":"AD1+1","v":1},"01-Stundensatz_A"]
[null,null,null,null,null,null,null,null,null,null,null,null,null,null,null,null,null,null,null,null,null,null,null,null,null,null,null,null,null,{"$f":"AD2+1","v":2},"02_Handelskalkulation_A"]
[null,null,null,null,null,null,null,null,null,null,null,null,"Zu dieser Datei:",null,null,null,null,null,null,null,null,null,null,null,null,null,null,null,null,3,"03_Entgeltrechnung_A"]
[null,null,null,null,null,null,null,null,null,null,null,null,null,null,null,null,null,null,null,null,null,null,null,null,null,null,null,null,null,4,"04_Break_even_1A"]
[null,null,null,null,null,null,null,null,null,null,null,null,"Diese Datei enthält eine Reihe von Kalkulations-Schemata, die für betriebs-",null,null,null,null,null,null,null,null,null,null,null,null,null,null,null,null,5,"05_Break_even_2A"]
[null,null,null,null,null,null,null,null,null,null,null,null,"wirtschaftliche Bewertungen und Entscheidungen in der Phase der Leistungs-",null,null,null,null,null,null,null,null,null,null,null,null,null,null,null,null,6,"06_Make_or_buy_A"]
[null,null,null,null,null,null,null,null,null,null,null,null,"erstellung nützlich sein können. Im Einzelnen betrifft dies"]
[null,null,null,null,null,null,null,null,null,null,null,null,null,"- die Ermittlung von Stundensätzen bei Dienstleistungen,"]
[null,null,null,null,null,null,null,null,null,null,null,null,null,"- die Ermittlung von Einstands- und Verkaufspreise bei Handelswaren,"]
[null,null,null,null,null,null,null,null,null,null,null,null,null,"- die Entgeltabrechnung (Nettolohn, Steuern, Abgaben),"]
[null,null,null,null,null,null,null,null,null,null,null,null,null,"- die Ermittlung auftrags- und umsatzbezogener Gewinnschwellen sowie"]
[null,null,null,null,null,null,null,null,null,null,null,null,null,"- die Bewertung von Entscheidungen über \"Eigenfertigung\" oder \"Fremdbezug\")."]
[]
[null,null,null,null,null,null,null,null,null,null,null,null,"Diese Kalkulations-Schemata enthalten Daten zu Fallbeispielen als Übungsaufgabe."]
[null,null,null,null,null,null,null,null,null,null,null,null,"Die jeweilige  Musterlösung kann nach Lösung der Aufgabe eingeblendet werden."]
[null,null,null,null,null,null,null,null,null,null,null,null,"Eine Nutzung der Schemata für eigene Daten ist möglich."]
[]
[]
[null,null,null,null,null,"Tabellen-Auswahl"]
[null,null,null,null,null,0]

{"sheet":"01_Stundensatz_A","index":1,"n_rows":57,"n_cols":10,"rows_kept":57,"cut":false,"hidden":false,"merged":[[26,3,26,5],[2,2,2,9],[19,3,19,4],[23,2,23,5],[24,3,24,5],[25,3,25,5],[33,3,33,5],[34,3,34,5],[35,3,35,5],[38,2,38,5],[27,3,27,5],[28,3,28,5],[29,3,29,5],[30,3,30,5],[31,3,31,5],[32,3,32,5]]}
[]
[]
[]
[null,null,"Stundensatz bei Dienstleistungen"]
[]
[null,null,"1.  Vorbemerkungen"]
[null,null,"Unternehmensgründer im Bereich Dienstleistungen benötigen für die Erarbeitung von Angeboten für Kunden"]
[null,null,"sowie für die Abrechnung erstellter Dienstleistungen einen Stundenverrechnungssatz [EUR/h], der das derzeitige"]
[null,null,"Kostenniveau des Unternehmens realistisch widerspiegelt."]
[null,null,"Nachfolgend wird hierfür ein Schema (mit Beispiel-Zahlen) vorgestellt, das für eigene Kalkulationszwecke genutzt oder"]
[null,null,"auch anderen Bedingungen angepasst werden kann."]
[null,null,"Aufgabe:"]
[null,null,"Ermitteln Sie anhand der vorgegebenen Beispielzahlen die Personalkosten, die Sachkosten und den Stundenverrechnungssatz!"]
[]
[null,null,"2.  Ermittlung der Kosten des Unternehmens pro Jahr"]
[]
[null,null,"a) Personalkosten",null,null,null,"Anzahl","Ø Entgelt pro Mitarb./ Monat","Summe/Jahr"]
[null,null,"1.1","Personalaufwendungen aller angestellten Mitarbeiter",null,null,3,2900,null," EUR/a"]
[null,null,"1.2","Kalkulatorischer Unternehmerlohn (Unternehmer)",null,null,1,3150,null," EUR/a"]
[null,null,"1.3","Personalnebenkosten (Sozialabgaben) [%]  zu Pos. 1.1",null,22,null,null,null," EUR/a"]
[null,null,"1.4","Personalkosten gesamt (1.1 bis 1.3)",null,null,null,null,null," EUR/a"]
[]
[null,null,"b) Sachkosten"]
[null,null,"Position",null,null,null,"Ø Betrag / Monat","Summe Jahr [EUR/a]"]
[null,null,"2.1","Miete und Nebenkosten (Gas, Wasser, Strom)",null,null,610]
[null,null,"2.2","Büro- und Verwaltungskosten (Bürobedarf, Kommunikation, Porto, Reisekosten u. a.)",null,null,670]
[null,null,"2.3","Versicherungen, Beiträge",null,null,580]
[null,null,"2.4","Fremdleistungen (Müllabfuhr, Reinigung, Reparaturen u. a.)",null,null,360]
[null,null,"2.5","Finanzierungskosten (Bankgebühren, Zinsen)",null,null,600]
[null,null,"2.6","Kalkuatorische Abschreibungen",null,null,null,15000]
[null,null,"2.7","Kfz-Kosten",null,null,440]
[null,null,"2.8","Kosten für Marketing, Werbung",null,null,350]
[null,null,"2.9","Betriebsbedarf (Werkzeuge, Ersatzmaterialien u. a.)",null,null,150]
[null,null,"2.10","Betriebliche Steuern (Kfz-Steuer, Grundsteuer u. a.)",null,null,350]
[null,null,"2.11","Sonstige Ausgaben (Zeitschriften, Bewirtungskosten u. a.)",null,null,500]
[null,null,"2.12","Sachkosten (2.1 bis 2.11)"]
[]
[null,null,"c) Summe Personal- und Sachkosten"]
[null,null,"Kosten nach Pos. 1.4 und 2.12"]
[]
[null,null,"3.  Ermittlung der fakturierungsfähigen Stunden pro Jahr"]
[]
[null,null,null,"1.","Anzahl der Tage im Jahr","d/a",365]
[null,null,null,"2.","Anzahl der Samstage und Sonntage im Jahr","d/a",104]
[null,null,null,"3.","Anzahl der Feiertage im Jahr","d/a",10]
[null,null,null,"4.","Anzahl der Urlaubstage im Jahr","d/a",24]
[null,null,null,"5.","Anzahl der Ausfalltage im Jahr (Krankheit u. a.)","d/a",4]
[null,null,null,"6.","Netto-Arbeitstage im Jahr","d/a",{"$f":"G43-SUM(G44:G47)","v":223}]
[null,null,null,"7.","Arbeitsstunden pro Tag, im Jahr","h/d bzw. h/a",8]
[null,null,null,"8.","Zeitverluste, Nichtauslastung [%], Std.","h/a",20]
[null,null,null,"9.","Summe fakturierbarer Stunden pro Jahr und Person","h/a",{"$f":"H49-H50","v":0}]
[null,null,null,"10.","Anzahl der Personen, deren Stunden verrechnet werden können","Pers.",{"$f":"G18","v":3}]
[]
[null,null,"4.  Stundenverrechnungssatz"]
[null,null,null,null,"Jährliche Kosten pro Jahr",null," EUR/a"]
[null,null,null,null,"Fakturierbare Stunden po Jahr",null," h/a"]
[null,null,null,null,"Stundenverrechnungssatz",null," EUR/h"]

{"sheet":"01_Stundensatz_L","index":2,"n_rows":55,"n_cols":10,"rows_kept":55,"cut":false,"hidden":true,"merged":[[36,2,36,5],[33,3,33,5],[21,2,21,5],[30,3,30,5],[31,3,31,5],[32,3,32,5],[24,3,24,5],[26,3,26,5],[27,3,27,5],[28,3,28,5],[29,3,29,5],[2,2,2,9],[17,3,17,4],[22,3,22,5],[23,3,23,5],[25,3,25,5]]}
[]
[]
[]
[null,null,"Stundensatz bei Dienstleistungen"]
[]
[null,null,"1.  Vorbemerkungen"]
[null,null,"Unternehmensgründer im Bereich Dienstleistungen benötigen für die Erarbeitung von Angeboten für Kunden"]
[null,null,"sowie für die Abrechnung erstellter Dienstleistungen einen Stundenverrechnungssatz [EUR/h], der das derzeitige"]
[null,null,"Kostenniveau des Unternehmens realistisch widerspiegelt."]
[null,null,"Nachfolgend wird hierfür ein Schema (mit Beispiel-Zahlen) vorgestellt, das für eigene Kalkulationszwecke genutzt oder"]
[null,null,"auch anderen Bedingungen angepasst werden kann."]
[]
[null,null,"2.  Ermittlung der Kosten des Unternehmens pro Jahr"]
[]
[null,null,"a) Personalkosten",null,null,null,"Anzahl","Ø Entgelt pro Mitarb./ Monat","Summe/Jahr"]
[null,null,"1.1","Personalaufwendungen aller angestellten Mitarbeiter",null,null,3,2900,{"$f":"G16*H16*12","v":104400}," EUR/a"]
[null,null,"1.2","Kalkulatorischer Unternehmerlohn (Unternehmer)",null,null,1,3150,{"$f":"G17*H17*12","v":37800}," EUR/a"]
[null,null,"1.3","Personalnebenkosten (Sozialabgaben) [%]  zu Pos. 1.1",null,22,null,null,{"$f":"I16*F18/100","v":22968}," EUR/a"]
[null,null,"1.4","Personalkosten gesamt (1.1 bis 1.3)",null,null,null,null,{"$f":"SUM(I16:I18)","v":165168}," EUR/a"]
[]
[null,null,"b) Sachkosten"]
[null,null,"Position",null,null,null,"Ø Betrag / Monat","Summe Jahr [EUR/a]"]
[null,null,"2.1","Miete und Nebenkosten (Gas, Wasser, Strom)",null,null,610,{"$f":"G23*12","v":7320}]
[null,null,"2.2","Büro- und Verwaltungskosten (Bürobedarf, Kommunikation, Porto, Reisekosten u. a.)",null,null,670,{"$f":"G24*12","v":8040}]
[null,null,"2.3","Versicherungen, Beiträge",null,null,580,6960]
[null,null,"2.4","Fremdleistungen (Müllabfuhr, Reinigung, Reparaturen u. a.)",null,null,360,4320]
[null,null,"2.5","Finanzierungskosten (Bankgebühren, Zinsen)",null,null,600,7200]
[null,null,"2.6","Kalkuatorische Abschreibungen",null,null,null,15000]
[null,null,"2.7","Kfz-Kosten",null,null,440,5280]
[null,null,"2.8","Kosten für Marketing, Werbung",null,null,350,4200]
[null,null,"2.9","Betriebsbedarf (Werkzeuge, Ersatzmaterialien u. a.)",null,null,150,1800]
[null,null,"2.10","Betriebliche Steuern (Kfz-Steuer, Grundsteuer u. a.)",null,null,350,4200]
[null,null,"2.11","Sonstige Ausgaben (Zeitschriften, Bewirtungskosten u. a.)",null,null,500,6000]
[null,null,"2.12","Sachkosten (2.1 bis 2.11)",null,null,null,{"$f":"SUM(H23:H33)","v":70320}]
[]
[null,null,"c) Summe Personal- und Sachkosten"]
[null,null,"Kosten nach Pos. 1.4 und 2.12",null,null,null,null,{"$f":"I19+H34","v":235488}]
[]
[null,null,"3.  Ermittlung der fakturierungsfähigen Stunden pro Jahr"]
[]
[null,null,null,"1.","Anzahl der Tage im Jahr","d/a",365]
[null,null,null,"2.","Anzahl der Samstage und Sonntage im Jahr","d/a",104]
[null,null,null,"3.","Anzahl der Feiertage im Jahr","d/a",10]
[null,null,null,"4.","Anzahl der Urlaubstage im Jahr","d/a",24]
[null,null,null,"5.","Anzahl der Ausfalltage im Jahr (Krankheit u. a.)","d/a",4]
[null,null,null,"6.","Netto-Arbeitstage im Jahr","d/a",{"$f":"G41-SUM(G42:G45)","v":223}]
[null,null,null,"7.","Arbeitsstunden pro Tag, im Jahr","h/d bzw. h/a",8,{"$f":"G46*G47","v":1784}]
[null,null,null,"8.","Zeitverluste, Nichtauslastung [%], Std.","h/a",20,{"$f":"H47*G48/100","v":356.8}]
[null,null,null,"9.","Summe fakturierbarer Stunden pro Jahr und Person","h/a",{"$f":"H47-H48","v":1427.2}]
[null,null,null,"10.","Anzahl der Personen, deren Stunden verrechnet werden können","Pers.",{"$f":"G16","v":3}]
[]
[null,null,"4.  Stundenverrechnungssatz"]
[null,null,null,null,"Jährliche Kosten pro Jahr",{"$f":"H37","v":235488}," EUR/a"]
[null,null,null,null,"Fakturierbare Stunden po Jahr",{"$f":"G49*G50","v":4281.6000000000004}," h/a"]
[null,null,null,null,"Stundenverrechnungssatz",{"$f":"ROUND(F53/F54,2)","v":55}," EUR/h"]

{"sheet":"02_Handelskalkulation_A","index":3,"n_rows":44,"n_cols":8,"rows_kept":44,"cut":false,"hidden":false,"merged":[[31,4,31,6],[2,2,2,13],[27,7,27,9],[28,4,28,6],[29,4,29,6],[30,4,30,6],[42,4,42,5],[43,4,43,5],[32,4,32,6],[34,4,34,6],[35,4,35,6],[39,4,39,5],[40,4,40,5],[41,4,41,5]]}
[]
[]
[]
[null,null,"Kalkulation von Handelswaren"]
[]
[null,null,"1. Vorbemerkungen"]
[]
[null,null,"Bei Handelswaren geht es um Produkte, die ein Unternehmer von Lieferanten (Hersteller bzw. Großhändlern) einkauft, um "]
[null,null,"diese Produkte - unbearbeitet oder nur unwesentlich bearbeitet - an eigene Kunden weiterzuverkaufen bzw. sie in Ver-"]
[null,null,"bindung mit Wartungs-/Reparaturleistungen zu verwenden und sie dann den eigenen Kunden in Rechnung zu stellen."]
[null,null,"Bewertungsgrundlage beim Einkauf ist der Einstandspreis und beim Verkauf der Verkaufspreis (netto)."]
[]
[null,null,"Aufgabe:"]
[null,null,"Ermitteln Sie anhand der vorgegebeben Beispiel-Zahlen den Einstandspreis, die Handlungskosten, den Handlungs-"]
[null,null,"kostensatz und den möglichen Barverkaufspreis!"]
[]
[null,null,"2. Kostenbestimmende Positionen beim Einkauf"]
[null,null,"Folgende Positionen sind beim Einkauf von Handelswaren kosten- und preisbestimmend:"]
[null,null,null,"Nr.","Position","Beispiel-Betrag"]
[null,null,null,"1.","Listenpreis des Lieferanten [EUR/ME]",100]
[null,null,null,"2.","Lieferer-Rabatt [%]",5]
[null,null,null,"3.","Lieferer-Skonto [%]",2]
[null,null,null,"4.","Bezugskosten - netto [EUR/ME]",5]
[null,null,null,"5.","Einstandspreis [EUR/ME]"]
[]
[null,null,"3. Beim Unternehmer anfallende Handlungskosten"]
[null,null,"Folgende Aufwendungen können beim Unternehmer als Handlungskosten in Rechnung gesetzt werden:"]
[null,null,null,null,null,null,null,"Beispiel-Zahlwerte"]
[null,null,null,"1.","Zurechenbare Personalkosten (Einkaufsbereich, Lagerbereich) [EUR/a]",null,null,5000]
[null,null,null,"2.","Zurechenbare Lagerkosten (Räume, Einrichtungen), bewertet zu kalkulatorishen Abschreibungen [EUR/a]",null,null,2000]
[null,null,null,"3.","Kapitalbindungskosten (Warenbestand, bewertet mit kalkulatorischem Zinssatz)",null,null,1200]
[null,null,null,"4.","Zurechenbare Versicherungen u. a., bezogen auf Warenbestände, Lehgereinrichtungen [EUR/a]",null,null,500]
[null,null,null,"5.","Summe zurechenbarer Kosten [EUR/a]"]
[]
[null,null,null,"6.","Gesamter Wareneinsatz [EUR/a]",null,null,20000]
[null,null,null,"7.","Handlungskostensatz [%]"]
[]
[null,null,"4. Kalkulation eines Barverkaufspreises bei Handelswaren"]
[null,null,null,null,null,null,null,"Beispiel-Zahlwerte"]
[null,null,null,"1.","Einstandspreis [EUR/ME]"]
[null,null,null,"2.","Handlungskosten [%], [EUR/ME]",null,{"$f":"H36","v":0}]
[null,null,null,"3.","Selbstkosten [EUR/ME]"]
[null,null,null,"4.","Gewinnzuschlag [%], [EUR/ME]",null,7]
[null,null,null,"5.","Barverkaufspreis [EUR/ME]"]

{"sheet":"02_Handelskalkulation_L","index":4,"n_rows":43,"n_cols":8,"rows_kept":43,"cut":false,"hidden":true,"merged":[[23,7,23,9],[30,4,30,6],[31,4,31,6],[35,4,35,5],[2,2,2,13],[24,4,24,6],[25,4,25,6],[26,4,26,6],[27,4,27,6],[36,4,36,5],[37,4,37,5],[38,4,38,5],[39,4,39,5],[28,4,28,6]]}
[]
[]
[]
[null,null,"Kalkulation von Handelswaren"]
[]
[null,null,"1. Vorbemerkungen"]
[]
[null,null,"Bei Handelswaren geht es um Produkte, die ein Unternehmer von Lieferanten (Hersteller bzw. Großhändlern) einkauft, um "]
[null,null,"diese Produkte - unbearbeitet oder nur unwesentlich bearbeitet - an eigene Kunden weiterzuverkaufen bzw. sie in Ver-"]
[null,null,"bindung mit Wartungs-/Reparaturleistungen zu verwenden und sie dann den eigenen Kunden in Rechnung zu stellen."]
[null,null,"Bewertungsgrundlage beim Einkauf ist der Einstandspreis und beim Verkauf der Verkaufspreis (netto)."]
[]
[null,null,"2. Kostenbestimmende Positionen beim Einkauf"]
[null,null,"Folgende Positionen sind beim Einkauf von Handelswaren kosten- und preisbestimmend:"]
[null,null,null,"Nr.","Position","Beispiel-Betrag"]
[null,null,null,"1.","Listenpreis des Lieferanten [EUR/ME]",100]
[null,null,null,"2.","Lieferer-Rabatt [%]",5]
[null,null,null,"3.","Lieferer-Skonto [%]",2]
[null,null,null,"4.","Bezugskosten - netto [EUR/ME]",5]
[null,null,null,"5.","Einstandspreis [EUR/ME]",{"$f":"F16*(1-F17/100)*(1-F18/100)+F19","v":98.1}]
[]
[null,null,"3. Beim Unternehmer anfallende Handlungskosten"]
[null,null,"Folgende Aufwendungen können beim Unternehmer als Handlungskosten in Rechnung gesetzt werden:"]
[null,null,null,null,null,null,null,"Beispiel-Zahlwerte"]
[null,null,null,"1.","Zurechenbare Personalkosten (Einkaufsbereich, Lagerbereich) [EUR/a]",null,null,5000]
[null,null,null,"2.","Zurechenbare Lagerkosten (Räume, Einrichtungen), bewertet zu kalkulatorishen Abschreibungen [EUR/a]",null,null,2000]
[null,null,null,"3.","Kapitalbindungskosten (Warenbestand, bewertet mit kalkulatorischem Zinssatz)",null,null,1200]
[null,null,null,"4.","Zurechenbare Versicherungen u. a., bezogen auf Warenbestände, Lehgereinrichtungen [EUR/a]",null,null,500]
[null,null,null,"5.","Summe zurechenbarer Kosten [EUR/a]",null,null,{"$f":"SUM(H25:H28)","v":8700}]
[]
[null,null,null,"6.","Gesamter Wareneinsatz [EUR/a]",null,null,20000]
[null,null,null,"7.","Handlungskostensatz [%]",null,null,{"$f":"H29*100/H31","v":43.5}]
[]
[null,null,"4. Kalkulation eines Barverkaufspreises bei Handelswaren"]
[null,null,null,null,null,null,null,"Beispiel-Zahlwerte"]
[null,null,null,"1.","Einstandspreis [EUR/ME]",null,null,{"$f":"F20","v":98.1}]
[null,null,null,"2.","Handlungskosten [%], [EUR/ME]",null,{"$f":"H32","v":43.5},{"$f":"H36*G37/100","v":42.673499999999997}]
[null,null,null,"3.","Selbstkosten [EUR/ME]",null,null,{"$f":"H36+H37","v":140.77349999999998}]
[null,null,null,"4.","Gewinnzuschlag [%], [EUR/ME]",null,7,{"$f":"H38*G39/100","v":9.854144999999999}]
[null,null,null,"5.","Barverkaufspreis [EUR/ME]",null,null,{"$f":"H38+H39","v":150.62764499999997}]
[]
[null,null,"Falls es im gegebenen Fall Sinn macht, kann im Weiteren ein Kunden-Skonto und/oder einen Kunden-Rabatt sowie die "]
[null,null,"gesetzliche Umsatzsteuer eingerechnet werden."]

{"sheet":"03_Entgeltrechnung_A","index":5,"n_rows":36,"n_cols":10,"rows_kept":36,"cut":false,"hidden":false,"merged":[[2,2,2,10]]}
[]
[]
[]
[null,null,"Entgeltabrechnung (Personalkosten)"]
[]
[null,null,"1. Fallbeispiel"]
[]
[null,null,"Die Gehaltsabrechnung für den Mitarbeiter  Walter R. ( kinderlos, 25 Jahre alt), beschäftigt beim Unternehmer "]
[null,null,{"$f":"CONCATENATE(\"Max Muster, enthält für Monat März des Kalenderjahres \" & YEAR(NOW()) & \" die  in nachstehender Tabelle aufgeführten Einzel-\")","v":"Max Muster, enthält für Monat März des Kalenderjahres 2021 die  in nachstehender Tabelle aufgeführten Einzel-"}]
[null,null,"angaben.- Die Zahlungen sind noch nicht erfolgt."]
[null,null,"Aufgabe: Es ist der Auszahlungsbetrag für den Mitarbeiter und die Aufwendungen für den Arbeitgeber zu ermitteln!"]
[]
[null,null,"2. Berechnungstabelle"]
[]
[null,null,null,"Nr.","Position",null,"%-Satz","Arbeit-nehmer","Arbeit-geber","gesamt"]
[null,null,null,"01","Bruttogehalt",null,null,2780,null,{"$f":"H16","v":2780}]
[null,null,null,"02","Sachbezug (Unterkunft)",null,null,null,184]
[null,null,null,"03","Vermögenswirksame Leistung",null,null,null,37]
[null,null,null,"04","Lohnsteuer- und SV-pflichtiges Entgelt"]
[null,null,null,"05","Lohnsteuer lt. Tabelle",null,null,460]
[null,null,null,"08","Rentenversicherung",null,18.600000000000001]
[null,null,null,"09","Krankenversicherung AN",null,8.3000000000000007]
[null,null,null,"10","Krankenversicherung AG",null,7.3]
[null,null,null,"11","Pflegeversicherung AN",null,1.5249999999999999]
[null,null,null,"12","Pflegeversicherung AG",null,1.2749999999999999]
[null,null,null,"13","Arbeitslosenversicherung",null,2.4]
[null,null,null,"14","SV-Beiträge gesamt"]
[null,null,null,"15","Nettoverdienst (ohne Sachbezüge)"]
[null,null,null,"16","./. Sachbezüge"]
[null,null,null,"17","./. Vermögenswirksame Leistung"]
[null,null,null,"19","Auszahlungsbetrag -netto"]
[null,null,null,"20","Aufwendungen für den AG"]
[null,null,null,"21","davon Personalbasiskosten"]
[null,null,null,"22","davon Personalzusatzkosten"]
[null,null,null,"23","% Anteil SV"]
[null,null,null,"24","% -Anteil Auszahlung zu Brutto"]

{"sheet":"03_Entgeltrechnung_L","index":6,"n_rows":36,"n_cols":10,"rows_kept":36,"cut":false,"hidden":true,"merged":[[2,2,2,10]]}
[]
[]
[]
[null,null,"Entgeltabrechnung (Personalkosten)"]
[]
[null,null,"1. Fallbeispiel"]
[]
[null,null,"Die Gehaltsabrechnung für den Mitarbeiter  Walter R. ( kinderlos, 25 Jahre alt), beschäftigt beim Unternehmer "]
[null,null,{"$f":"CONCATENATE(\"Max Muster, enthält für Monat März des Kalenderjahres \" & YEAR(NOW()) & \" die  in nachstehender Tabelle aufgeführten Einzel-\")","v":"Max Muster, enthält für Monat März des Kalenderjahres 2021 die  in nachstehender Tabelle aufgeführten Einzel-"}]
[null,null,"angaben.- Die Zahlungen sind noch nicht erfolgt."]
[null,null,"Aufgabe: Es ist der Auszahlungsbetrag für den Mitarbeiter und die Aufwendungen für den Arbeitgeber zu ermitteln!"]
[]
[null,null,"2. Berechnungstabelle"]
[]
[null,null,null,"Nr.","Position",null,"%-Satz","Arbeit-nehmer","Arbeit-geber","gesamt"]
[null,null,null,"01","Bruttogehalt",null,null,2780,null,{"$f":"H16","v":2780}]
[null,null,null,"02","Sachbezug (Unterkunft)",null,null,null,184,{"$f":"I17","v":184}]
[null,null,null,"03","Vermögenswirksame Leistung",null,null,null,39,{"$f":"I18","v":39}]
[null,null,null,"04","Lohnsteuer- und SV-pflichtiges Entgelt",null,null,null,null,{"$f":"J16+J17+J18","v":3003}]
[null,null,null,"05","Lohnsteuer lt. Tabelle",null,null,460,null,{"$f":"H20","v":460}]
[null,null,null,"08","Rentenversicherung",186,{"$f":"F21/10","v":18.600000000000001},{"$f":"(J19*G21/100)/2","v":279.279},{"$f":"H21","v":279.279},{"$f":"H21+I21","v":558.55799999999999}]
[null,null,null,"09","Krankenversicherung AN",83,{"$f":"F22/10","v":8.3000000000000007},{"$f":"J19*G22/100","v":249.24900000000002},null,{"$f":"H22","v":249.24900000000002}]
[null,null,null,"10","Krankenversicherung AG",73,7.3,null,{"$f":"J19*G23/100","v":219.21899999999997},{"$f":"H23+I23","v":219.21899999999997}]
[null,null,null,"11","Pflegeversicherung AN",1525,{"$f":"F24/1000","v":1.5249999999999999},{"$f":"J19*G24/100","v":45.795749999999998},null,{"$f":"H24","v":45.795749999999998}]
[null,null,null,"12","Pflegeversicherung AG",1275,{"$f":"F25/1000","v":1.2749999999999999},null,{"$f":"J19*G25/100","v":38.288249999999998},{"$f":"I25","v":38.288249999999998}]
[null,null,null,"13","Arbeitslosenversicherung",24,2.4,{"$f":"(J19*G26/100)/2","v":36.036000000000001},{"$f":"H26","v":36.036000000000001},{"$f":"H26+I26","v":72.072000000000003}]
[null,null,null,"14","SV-Beiträge gesamt",null,null,{"$f":"SUM(H21:H26)","v":610.35975000000008},{"$f":"SUM(I21:I26)","v":572.82224999999994},{"$f":"H27+I27","v":1183.182}]
[null,null,null,"15","Nettoverdienst (ohne Sachbezüge)",null,null,{"$f":"J19-H20-H27","v":1932.6402499999999}]
[null,null,null,"16","./. Sachbezüge",null,null,{"$f":"J17","v":184}]
[null,null,null,"17","./. Vermögenswirksame Leistung",null,null,{"$f":"I18","v":39}]
[null,null,null,"19","Auszahlungsbetrag -netto",null,null,{"$f":"H28-H29-H30","v":1709.6402499999999}]
[null,null,null,"20","Aufwendungen für den AG",null,null,null,{"$f":"J19+I27","v":3575.8222500000002}]
[null,null,null,"21","davon Personalbasiskosten",null,null,null,null,{"$f":"J16","v":2780}]
[null,null,null,"22","davon Personalzusatzkosten",null,null,null,null,{"$f":"J17+J18+I27","v":795.82224999999994}]
[null,null,null,"23","% Anteil SV",null,{"$f":"G21/2+G22+G24+G26/2","v":20.324999999999999},null,{"$f":"G21/2+G23+G25+G26/2","v":19.074999999999999}]
[null,null,null,"24","% -Anteil Auszahlung zu Brutto",null,{"$f":"H31*100/H16","v":61.497850719424456}]

{"sheet":"04_Break_even_1A","index":7,"n_rows":43,"n_cols":12,"rows_kept":43,"cut":false,"hidden":false,"merged":[[22,2,22,8],[34,5,34,6],[38,5,38,6],[40,5,40,6],[2,2,2,13],[17,2,17,8],[18,2,18,8],[19,2,19,8],[20,2,20,8],[21,2,21,8]]}
[]
[]
[]
[null,null,"Break-even-Berechnung (auftragsbezogen)"]
[]
[null,null,"1. Problemstellung"]
[]
[null,null,"Der Unternehmer Max Muster möchte wissen, bei welcher Anzahl von Service-Aufträgen/Monat er in seinem Unternehmen "]
[null,null,"die Gewinnschwelle erreichen würde. Dabei soll zugleich sichtbar werden, ob die diesbezügliche Service-Kapazität ausreicht,"]
[null,null,"um über die ermittelte Gewinnschwelle (Break-even-Punkt) hinaus weitere Service-Aufträge kapazitätsseitig abgesichert"]
[null,null," werden können."]
[null,null,"Für eine solche Break-even-Berechnung liegen die nachstehend aufgeführten Durchschnittswerte zum Pozess der Leistungs-"]
[null,null,"vor."]
[null,null,"Aufgabe:"]
[null,null,"Anhand der gegebenen Beispiel-Zahlen ist die auftragsbezogene Gewinnschwelle sowie der Sicherheitsabstand zur Kapazitäts-"]
[null,null,"grenze zu ermitteln!"]
[null,null,"Daten:"]
[null,null,"Anzahl der Arbeitstage im Monat (Symbol ATM [d/Monat])",null,null,null,null,null,null,21]
[null,null,"Durchschnittliche Anzahl der an einem Arbeitstag erledigten Aufträge (Symbol xd [ME/d])",null,null,null,null,null,null,6]
[null,null,"Leistungs- bzw. Kapazitätsgrenze (Symbol Lmax [realisierbare Aufträge/Monat])"]
[null,null,"abzudeckende Fixkosten (Symbol Kf  [EUR/Monat])",null,null,null,null,null,null,12000]
[null,null,"Durchschnittlicher Netto-Preis je Auftrag (Symbol PN [EUR/Auftrag])",null,null,null,null,null,null,250]
[null,null,"Durchschnittliche variable Kosten je Auftrag (Symbol kv [EUR/Auftrag])",null,null,null,null,null,null,160]
[]
[null,null,"Berechnungsformeln:"]
[null,null,"Die Gewinnschwelle (Menge x0) wird erreicht, wenn die Erlöse aus realisierten Aufträgen (Größe E0) genau die an diesem Punkt"]
[null,null,"anfallenden Kosten (Größe K0), bestehend aus den Fixkosten Kf und den entsprechenden variablen Kosten Kv, entsprechen:"]
[null,null,null,null,null,"   E0 = PN * x0 = K0,    mit",null,null,null,"(1)"]
[null,null,null,null,null,null," mit  K0  = Kf + Kv,0 = Kf + kv * x0",null,null,"(2)"]
[null,null,"Wird die Gewinnschwellen-Gleichung",null,null,null,"PN * x0 = Kf + kv * x0",null,"nach x0 umgstellt, erhält man die typische"]
[null,null,"Break-even-Formel (3):"]
[null,null,null,null,null,null,"(3)"]
[]
[null,null,"Der Sicherheitsabstand (Symbol Sx [ME]) der Break-even Menge x0 zur Kapazitätsgrenze Lmax wird wie folgt berechnet:"]
[null,null,null,null,null,"Sx = Lmax - x0 [ME].",null,"(4)"]
[]
[null,null,"Recherische Lösung:"]
[null,null,null,null,null,"Hier Klartext eintragen",null,null,"Zahlwerte"]
[null,null,null,null,null,null,null,null,null,null,"Ergebnis"]
[null,null,"Gewinnschwelle x0 =",null,null,null,null," =",null," =",null," [ME]"]
[]
[]
[null,null,"Sicherheitsabstand Sx =",null,null,null," Aufträge."]

{"sheet":"04_Break_even_1L","index":8,"n_rows":46,"n_cols":12,"rows_kept":46,"cut":false,"hidden":true,"merged":[[34,5,34,6],[38,5,38,6],[40,5,40,6],[22,2,22,8],[19,2,19,8],[2,2,2,13],[17,2,17,8],[18,2,18,8],[20,2,20,8],[21,2,21,8]]}
[]
[]
[]
[null,null,"Break-even-Berechnung (auftragsbezogen)"]
[]
[null,null,"1. Problemstellung"]
[]
[null,null,"Der Unternehmer Max Muster möchte wissen, bei welcher Anzahl von Service-Aufträgen/Monat er in seinem Unternehmen "]
[null,null,"die Gewinnschwelle erreichen würde. Dabei soll zugleich sichtbar werden, ob die diesbezügliche Service-Kapazität ausreicht,"]
[null,null,"um über die ermittelte Gewinnschwelle (Break-even-Punkt) hinaus weitere Service-Aufträge kapazitätsseitig abgesichert"]
[null,null," werden können."]
[null,null,"Für eine solche Break-even-Berechnung liegen die nachstehend aufgeführten Durchschnittswerte zum Pozess der Leistungs-"]
[null,null,"vor."]
[null,null,"Aufgabe:"]
[null,null,"Anhand der gegebenen Beispiel-Zahlen ist die auftragsbezogene Gewinnschwelle sowie der Sicherheitsabstand zur Kapazitäts-"]
[null,null,"grenze zu ermitteln!"]
[null,null,"Daten:"]
[null,null,"Anzahl der Arbeitstage im Monat (Symbol ATM [d/Monat])",null,null,null,null,null,null,21]
[null,null,"Durchschnittliche Anzahl der an einem Arbeitstag erledigten Aufträge (Symbol xd [ME/d])",null,null,null,null,null,null,6]
[null,null,"Leistungs- bzw. Kapazitätsgrenze (Symbol Lmax [realisierbare Aufträge/Monat])",null,null,null,null,null,null,{"$f":"ATM*xd","v":126}]
[null,null,"abzudeckende Fixkosten (Symbol Kf  [EUR/Monat])",null,null,null,null,null,null,12000]
[null,null,"Durchschnittlicher Netto-Preis je Auftrag (Symbol PN [EUR/Auftrag])",null,null,null,null,null,null,250]
[null,null,"Durchschnittliche variable Kosten je Auftrag (Symbol kv [EUR/Auftrag])",null,null,null,null,null,null,60]
[]
[null,null,"Berechnungsformeln:"]
[null,null,"Die Gewinnschwelle (Menge x0) wird erreicht, wenn die Erlöse aus realisierten Aufträgen (Größe E0) genau die an diesem Punkt"]
[null,null,"anfallenden Kosten (Größe K0), bestehend aus den Fixkosten Kf und den entsprechenden variablen Kosten Kv, entsprechen:"]
[null,null,null,null,null,"   E0 = PN * x0 = K0,    mit",null,null,null,"(1)"]
[null,null,null,null,null,null," mit  K0  = Kf + Kv,0 = Kf + kv * x0",null,null,"(2)"]
[null,null,"Wird die Gewinnschwellen-Gleichung",null,null,null,"PN * x0 = Kf + kv * x0",null,"nach x0 umgstellt, erhält man die typische"]
[null,null,"Break-even-Formel (3):"]
[null,null,null,null,null,null,"(3)"]
[]
[null,null,"Der Sicherheitsabstand (Symbol Sx [ME]) der Break-even Menge x0 zur Kapazitätsgrenze Lmax wird wie folgt berechnet:"]
[null,null,null,null,null,"Sx = Lmax - x0 [ME].",null,"(4)"]
[]
[null,null,"Recherische Lösung:"]
[]
[null,null,null,null,null,"Fixkosten [EUR]",null,null,{"$f":"Kf","v":12000}]
[null,null,"Gewinnschwelle x0 =",null,null,null,null," =",null," =",{"$f":"ROUND(I39/I41,0)","v":63}," [ME]"]
[null,null,null,null,null,"Preis ./. variable Kosten",null,null,{"$f":"PN-dvk","v":190}]
[]
[null,null,"Sicherheitsabstand Sx =",null,null,{"$f":"ATM*xd -x0L","v":63}," Aufträge."]
[]
[]
[null,null,"Nachfolgend wird gezeigt, wie der Break-even-Punkt grafisch veranschaulicht werden kann."]

{"sheet":"04_Break_even_1G","index":9,"n_rows":29,"n_cols":18,"rows_kept":29,"cut":false,"hidden":true,"merged":[[2,2,2,20],[8,12,8,13]]}
[]
[]
[]
[null,null,"Break-even-Berechnung (auftragsbezogen)"]
[]
[null,null,"Grafische Lösung"]
[]
[null,null,"Aufträge x [ME]","Netto-Erlöse E [EUR]","Variable Kosten Kv [EUR]","Fixkosten Kf [EUR]","Gesamt-kosten K [EUR]","Erfolg  (Verlust, Gewinn) G [EUR]","Kapazität Lmax [ME]",null,"Parameter:"]
[null,null,0,{"$f":"PN*C9","v":0},{"$f":"dvk*C9","v":0},{"$f":"Kf","v":12000},{"$f":"E9+F9","v":12000},{"$f":"D9-G9","v":-12000},{"$f":"L","v":126},null,"Preis PN =",{"$f":"PN","v":250}," var. Kosten =  ",null,{"$f":"dvk","v":60},null,"Fixkosten =",{"$f":"Kf","v":12000}]
[null,null,{"$f":"C9+10","v":10},2500,600,12000,{"$f":"E10+F10","v":12600},{"$f":"D10-G10","v":-10100},126]
[null,null,{"$f":"C10+10","v":20},5000,1200,12000,13200,-8200,126,null,"Diagramm:"]
[null,null,30,7500,1800,12000,13800,-6300,126]
[null,null,40,10000,2400,12000,14400,-4400,126]
[null,null,50,12500,3000,12000,15000,-2500,126]
[null,null,60,15000,3600,12000,15600,-600,126]
[null,null,70,17500,4200,12000,16200,1300,126]
[null,null,80,20000,4800,12000,16800,3200,126]
[null,null,90,22500,5400,12000,17400,5100,126]
[null,null,100,25000,6000,12000,18000,7000,126]
[null,null,110,27500,6600,12000,18600,8900,126]
[null,null,120,30000,7200,12000,19200,10800,126]
[null,null,130,32500,7800,12000,19800,12700,126]
[null,null,{"$f":"C22+10","v":140},35000,8400,12000,20400,14600,126]
[null,null,150,37500,9000,12000,21000,16500,126]
[null,null,160,40000,9600,12000,21600,18400,126]
[null,null,170,42500,10200,12000,22200,20300,126]
[null,null,180,45000,10800,12000,22800,22200,126]
[null,null,190,47500,11400,12000,23400,24100,126]
[null,null,200,50000,12000,12000,24000,26000,126]

{"sheet":"05_Break_even_2A","index":10,"n_rows":32,"n_cols":10,"rows_kept":32,"cut":false,"hidden":false,"merged":[[2,2,2,12],[15,2,15,8],[16,2,16,8]]}
[]
[]
[]
[null,null,"Break-even-Berechnung (umsatzbezogen)"]
[]
[null,null,"1. Problemstellung"]
[]
[null,null,"Der Unternehmer Max Muster möchte wissen,  welche monatliche Umsatzgöße er in seinem Unternehmen"]
[null,null," mindestens erreichen muss, damit die damit erzielten Erlöse wenigstens kostendeckend sind."]
[null,null,"Für eine solche Break-even-Berechnung liegen die nachstehend aufgeführten Durchschnittswerte zum Prozess "]
[null,null,"der Leistungserstellung vor."]
[null,null,"Aufgabe:"]
[null,null,"Anhand der gegebenen Beispiel-Zahlen ist die umsatzbezogene Gewinnschwelle sowie der Sicherheitsabstand "]
[null,null,"zur Kapazitätsgrenze zu ermitteln!"]
[null,null,"Daten:"]
[null,null,"abzudeckende Fixkosten (Symbol Kf  [EUR/Monat])",null,null,null,null,null,null,12000]
[null,null,"durchschnittlicher Anteil der variablen Kosten Umsatz [%]",null,null,null,null,null,null,60]
[]
[null,null,"Berechnungsformeln:"]
[null,null,"Die Gewinnschwelle (Umsatz U0) wird erreicht, wenn die Erlöse aus dieser Größe (Symbol E0) genau die"]
[null,null,"an diesem Punkt anfallenden Kosten (Größe K0), bestehend aus den Fixkosten Kf und den entsprechenden"]
[null,null," variablen Kosten Kv, entsprechen:"]
[null,null,null,null,null,"   E0 = U0 = K0,    mit"]
[null,null,null,null,null,null," mit  K0  = Kf + Kv,0 = Kf + U0 * a/100"]
[null,null,"Wird die Gewinnschwellen-Gleichung",null,null,null,"U0 = Kf + U0 * a/100",null,"bzw.","U0 * 100 = Kf * 100 + U0 * a"]
[null,null,"nach U0 umgestellt, dann erhält man folgende Break-even-Formel:"]
[]
[null,null,null,null,null,null,null,null,"(5)"]
[]
[null,null,"Recherische Lösung:"]
[]
[null,null,"Gewinnschwelle U0 =",null,null,null,"=",null," [EUR]"]

{"sheet":"05_Break_even_2L","index":11,"n_rows":35,"n_cols":10,"rows_kept":35,"cut":false,"hidden":true,"merged":[[2,2,2,12],[16,2,16,8],[15,2,15,8]]}
[]
[]
[]
[null,null,"Break-even-Berechnung (umsatzbezogen)"]
[]
[null,null,"1. Problemstellung"]
[]
[null,null,"Der Unternehmer Max Muster möchte wissen,  welche monatliche Umsatzgöße er in seinem Unternehmen"]
[null,null," mindestens erreichen muss, damit die damit erzielten Erlöse wenigstens kostendeckend sind."]
[null,null,"Für eine solche Break-even-Berechnung liegen die nachstehend aufgeführten Durchschnittswerte zum Prozess "]
[null,null,"der Leistungserstellung vor."]
[null,null,"Aufgabe:"]
[null,null,"Anhand der gegebenen Beispiel-Zahlen ist die umsatzbezogene Gewinnschwelle sowie der Sicherheitsabstand "]
[null,null,"zur Kapazitätsgrenze zu ermitteln!"]
[null,null,"Daten:"]
[null,null,"abzudeckende Fixkosten (Symbol Kf  [EUR/Monat])",null,null,null,null,null,null,12000]
[null,null,"durchschnittlicher Anteil der variablen Kosten Umsatz [%]",null,null,null,null,null,null,60]
[]
[null,null,"Berechnungsformeln:"]
[null,null,"Die Gewinnschwelle (Umsatz U0) wird erreicht, wenn die Erlöse aus dieser Größe (Symbol E0) genau die"]
[null,null,"an diesem Punkt anfallenden Kosten (Größe K0), bestehend aus den Fixkosten Kf und den entsprechenden"]
[null,null," variablen Kosten Kv, entsprechen:"]
[null,null,null,null,null,"   E0 = U0 = K0,    mit"]
[null,null,null,null,null,null," mit  K0  = Kf + Kv,0 = Kf + U0 * a/100"]
[null,null,"Wird die Gewinnschwellen-Gleichung",null,null,null,"U0 = Kf + U0 * a/100",null,"bzw.","U0 * 100 = Kf * 100 + U0 * a"]
[null,null,"nach U0 umgestellt, dann erhält man folgende Break-even-Formel:"]
[]
[null,null,null,null,null,null,null,null,"(5)"]
[]
[null,null,"Recherische Lösung:"]
[null,null,null,null,null,{"$f":"Kfix*100","v":1200000}]
[null,null,"Gewinnschwelle U0 =",null,null,null,"=",{"$f":"F31/F33","v":30000}," [EUR]"]
[null,null,null,null,null,{"$f":"100-a","v":40}]
[]
[null,null,"Nachfolgend wird gezeigt, wie der Break-even-Punkt grafisch veranschaulicht werden kann."]

{"sheet":"05_Break_even_2G","index":12,"n_rows":30,"n_cols":17,"rows_kept":30,"cut":false,"hidden":true,"merged":[[2,2,2,19],[8,10,8,12]]}
[]
[]
[]
[null,null,"Break-even-Berechnung (umsatzbezogen)"]
[]
[null,null,"Grafische Lösung"]
[]
[null,null,"Umsatz U [EUR]","Netto-Erlöse E [EUR]","Variable Kosten Kv [EUR]","Fixkosten Kf [EUR]","Gesamt-kosten K [EUR]","Erfolg  (Verlust, Gewinn) G [EUR]",null,"Parameter:"]
[null,null,0,{"$f":"C9","v":0},{"$f":"C9*a/100","v":0},{"$f":"'05_Break_even_2L'!Kfix","v":12000},{"$f":"E9+F9","v":12000},{"$f":"D9-G9","v":-12000},null,null," Anteil var. Kosten =  ",null,null,{"$f":"a","v":60},null,"Fixkosten =",{"$f":"'05_Break_even_2L'!Kfix","v":12000}]
[null,null,{"$f":"C9+1500","v":1500},{"$f":"C10","v":1500},900,{"$f":"'05_Break_even_2L'!Kfix","v":12000},12900,{"$f":"D10-G10","v":-11400}]
[null,null,{"$f":"C10+1500","v":3000},3000,1800,{"$f":"'05_Break_even_2L'!Kfix","v":12000},13800,-10800,null,"Diagramm:"]
[null,null,4500,4500,2700,{"$f":"'05_Break_even_2L'!Kfix","v":12000},14700,-10200]
[null,null,6000,6000,3600,{"$f":"'05_Break_even_2L'!Kfix","v":12000},15600,-9600]
[null,null,7500,7500,4500,{"$f":"'05_Break_even_2L'!Kfix","v":12000},16500,-9000]
[null,null,9000,9000,5400,{"$f":"'05_Break_even_2L'!Kfix","v":12000},17400,-8400]
[null,null,10500,10500,6300,{"$f":"'05_Break_even_2L'!Kfix","v":12000},18300,-7800]
[null,null,12000,12000,7200,{"$f":"'05_Break_even_2L'!Kfix","v":12000},19200,-7200]
[null,null,13500,13500,8100,{"$f":"'05_Break_even_2L'!Kfix","v":12000},20100,-6600]
[null,null,15000,15000,9000,{"$f":"'05_Break_even_2L'!Kfix","v":12000},21000,-6000]
[null,null,16500,16500,9900,{"$f":"'05_Break_even_2L'!Kfix","v":12000},21900,-5400]
[null,null,18000,18000,10800,{"$f":"'05_Break_even_2L'!Kfix","v":12000},22800,-4800]
[null,null,19500,19500,11700,{"$f":"'05_Break_even_2L'!Kfix","v":12000},23700,-4200]
[null,null,21000,21000,12600,{"$f":"'05_Break_even_2L'!Kfix","v":12000},24600,-3600]
[null,null,22500,22500,13500,{"$f":"'05_Break_even_2L'!Kfix","v":12000},25500,-3000]
[null,null,24000,24000,14400,{"$f":"'05_Break_even_2L'!Kfix","v":12000},26400,-2400]
[null,null,25500,25500,15300,{"$f":"'05_Break_even_2L'!Kfix","v":12000},27300,-1800]
[null,null,27000,27000,16200,{"$f":"'05_Break_even_2L'!Kfix","v":12000},28200,-1200]
[null,null,28500,28500,17100,{"$f":"'05_Break_even_2L'!Kfix","v":12000},29100,-600]
[null,null,30000,30000,18000,{"$f":"'05_Break_even_2L'!Kfix","v":12000},30000,0]
[null,null,31500,{"$f":"C30","v":31500},{"$f":"C30*a/100","v":18900},{"$f":"'05_Break_even_2L'!Kfix","v":12000},{"$f":"E30+F30","v":30900},{"$f":"D30-G30","v":600}]

{"sheet":"06_Make_or_buy_A","index":13,"n_rows":48,"n_cols":10,"rows_kept":48,"cut":false,"hidden":false,"merged":[[2,2,2,9],[45,6,45,7],[47,2,47,3],[47,4,47,9]]}
[]
[]
[]
[null,null,"Entscheidungsproblem \" Make-or-buy\""]
[]
[null,null,"1. Problemstellung"]
[]
[null,null,"Der Unternehmer Max Muster hat sich vor Beginn der Ingangsetzung des Geschäftsbetriebs seines zu gründenden "]
[null,null,"Unternehmens umfassend  darüber informiert, welche Zubehör-Teile ein Unternehmen \"E-Car-Services\" für Kunden "]
[null,null,"bereit halten sollte."]
[null,null,"Ein nützliches Angebot könnte die Bereitstellung von Wandhalterungen für Ladekupplungen sein."]
[null,null,"Für den Gründer stelle sich dabei die Frage, ob es aus wirtschaftlicher Sicht besser ist,  derartige Wandhalterungen"]
[null,null,"von Lieferanten zu kaufen oder ob es sich lohnen könnte, die Halterungen selbst zu erstellen und seinen Kunden als"]
[null,null," \"selbst gemacht\" anzubieten."]
[null,null,"Bei einer Eigenfertigung müsste der Gründer sich allerdings eine Spezialmaschine anschaffen, die eine weitgehend "]
[null,null,"automatisierte Fertigung von Wandhalterungen ermöglicht,"]
[null,null,"Mit anderen Worten: Es geht um das \"klassische\" Problem \"Eigenfertigung oder Fremdbezug\" (also \"Make or \"buy\")."]
[]
[null,null,"2. Aufgaben:"]
[]
[null,null,"1. ","Es ist zu überprüfen, ob bei den nachstehend aufgeführten Daten eine Eigenfertigung wirklich kostengünstiger"]
[null,null,null,"ist oder ob der Fremdbezug  von Wandhalterungen sinvoller wäre!"]
[null,null,"2. ","Unter diesem Aspekt ist ferner jene kritische Menge x0 zu ermitteln, bei der die Kosten für die Eigenfertigung "]
[null,null,null,"genau den Kosten für den Fremdbezug entsprechen!"]
[]
[null,null,"3.  Daten und Berechnungen"]
[]
[null,null,null,"a) Fremdbezug",null,null,null,"b) Eigenfertigung"]
[null,null,null,"Nr.","Position","Angaben",null,"Nr.","Position","Angaben"]
[null,null,null,1,"Bedarf [ME/a]",1500,null,1,"Bedarf [ME/a]",{"$f":"F30","v":1500}]
[null,null,null,2,"Preis P [EUR/ME]",17.100000000000001,null,{"$f":"H30+1","v":2},"variable Kosten  kv [EUR/ME]",10.8]
[null,null,null,3,"Summe Kosten Fremdbezug [EUR]",1,null,{"$f":"H31+1","v":3},"variable Kosten gesamt [EUR/a]"]
[null,null,null,null,null,null,null,4,"Anschaffungskosten [EUR]",21600]
[null,null,"c) Kostenvergleich",null,null,null,null,5,"Nutzungsdauer [a]",4]
[null,null,"  Bei den hier gegebenen Daten ist",null,null,null,null,6,"kalkulat Abschreibungen [EUR/a]"]
[null,null,null,null,null,null,null,7,"Kalkulat. Zinssatz  [%]",8.5]
[null,null,null,null,null,null,null,8,"kalkulat. Zinsen [EUR]"]
[null,null,null,null,null,null,null,9,"sonstige Fixkosten [EUR/a]",2440]
[null,null,null,null,null,null,null,10,"Summe Fixkosten Kf [EUR/a]"]
[null,null,null,null,null,null,null,11,"Summe Kosten Eigenfertigung",2]
[null,null,"4.  Kritische Menge x0"]
[null,null,"Aus dem Ansatz \"Kosten Fremdbezug\" = \"Kosten Eigenfertigung\" mit  P * x0 = Kf + kv * x0 lässt sich"]
[null,null,"folgende Formel für die Ermittlung der kritische Menge x0 ableiten:"]
[]
[null,null,null,null,null,"Bezogen auf die obigen Daten ergibt sich für x0 folgender Wert:"]
[null,null,null,null,null,"x0 =",null,null," [ME]"]
[]
[null,null,"Dies be-deutet:"]

{"sheet":"06_Make_or_buy_L","index":14,"n_rows":49,"n_cols":11,"rows_kept":49,"cut":false,"hidden":true,"merged":[[2,2,2,9],[45,6,45,7]]}
[]
[]
[]
[null,null,"Entscheidungsproblem \" Make-or-buy\""]
[]
[null,null,"1. Problemstellung"]
[]
[null,null,"Der Unternehmer Max Muster hat sich vor Beginn der Ingangsetzung des Geschäftsbetriebs seines zu gründenden "]
[null,null,"Unternehmens umfassend  darüber informiert, welche Zubehör-Teile ein Unternehmen \"E-Car-Services\" für Kunden "]
[null,null,"bereit halten sollte."]
[null,null,"Ein nützliches Angebot könnte die Bereitstellung von Wandhalterungen für Ladekupplungen sein."]
[null,null,"Für den Gründer stelle sich dabei die Frage, ob es aus wirtschaftlicher Sicht besser ist,  derartige Wandhalterungen"]
[null,null,"von Lieferanten zu kaufen oder ob es sich lohnen könnte, die Halterungen selbst zu erstellen und seinen Kunden als"]
[null,null," \"selbst gemacht\" anzubieten."]
[null,null,"Bei einer Eigenfertigung müsste der Gründer sich allerdings eine Spezialmaschine anschaffen, die eine weitgehend "]
[null,null,"automatisierte Fertigung von Wandhalterungen ermöglicht,"]
[null,null,"Mit anderen Worten: Es geht um das \"klassische\" Problem \"Eigenfertigung oder Fremdbezug\" (also \"Make or \"buy\")."]
[]
[null,null,"2. Aufgaben:"]
[]
[null,null,"1. ","Es ist zu überprüfen, ob bei den nachstehend aufgeführten Daten eine Eigenfertigung wirklich kostengünstiger"]
[null,null,null,"ist oder ob der Fremdbezug  von Wandhalterungen sinnvoller wäre!"]
[null,null,"2. ","Unter diesem Aspekt ist ferner jene kritische Menge x0 zu ermitteln, bei der die Kosten für die Eigenfertigung "]
[null,null,null,"genau den Kosten für den Fremdbezug entsprechen!"]
[]
[null,null,"3.  Daten und Berechnungen"]
[]
[null,null,null,"a) Fremdbezug",null,null,null,"b) Eigenfertigung"]
[null,null,null,"Nr.","Position","Angaben",null,"Nr.","Position","Angaben"]
[null,null,null,1,"Bedarf [ME/a]",1500,null,1,"Bedarf [ME/a]",{"$f":"F30","v":1500}]
[null,null,null,2,"Preis P [EUR/ME]",{"$f":"G31/10","v":17.100000000000001},171,{"$f":"H30+1","v":2},"variable Kosten  kv [EUR/ME]",{"$f":"K31/10","v":10.8},108]
[null,null,null,3,"Summe Kosten Fremdbezug [EUR]",{"$f":"F30*F31","v":25650.000000000004},null,{"$f":"H31+1","v":3},"variable Kosten gesamt [EUR/a]",{"$f":"J30*J31","v":16200.000000000002}]
[null,null,null,null,null,null,null,4,"Anschaffungskosten [EUR]",21600]
[null,null,"c) Kostenvergleich",null,null,null,null,5,"Nutzungsdauer [a]",4]
[null,null,"  Bei den hier gegebenen Daten ist",null,null,null,null,6,"kalkulat Abschreibungen [EUR/a]",{"$f":"J33/J34","v":5400}]
[null,null,null,{"$f":"IF(KEF<KFB, \"die Eigenfertigung kostengünstiger!\",\"der Fremdbezug günstiger!\")","v":"die Eigenfertigung kostengünstiger!"},null,null,null,7,"Kalkulat. Zinssatz  [%]",{"$f":"K36/10","v":8.5},85]
[null,null,null,null,null,null,null,8,"kalkulat. Zinsen [EUR]",{"$f":"(J33/2)*J36/100","v":918}]
[null,null,null,null,null,null,null,9,"sonstige Fixkosten [EUR/a]",2440]
[null,null,null,null,null,null,null,10,"Summe Fixkosten Kf [EUR/a]",{"$f":"J35+J37+J38","v":8758}]
[null,null,null,null,null,null,null,11,"Summe Kosten Eigenfertigung",{"$f":"J32+J39","v":24958}]
[null,null,"4.  Kritische Menge x0"]
[null,null,"Aus dem Ansatz \"Kosten Fremdbezug\" = \"Kosten Eigenfertigung\" mit  P * x0 = Kf + kv * x0 lässt sich"]
[null,null,"folgende Formel für die Ermittlung der kritische Menge x0 ableiten:"]
[]
[null,null,null,null,null,"Bezogen auf die obigen Daten ergibt sich für x0 folgender Wert:"]
[null,null,null,null,null,"x0 =",{"$f":"ROUND(J39/(F31-J31),0)","v":1390},null," [ME]"]
[]
[null,null,{"$f":"CONCATENATE(\"Dies bedeutet, dass bei einem Jahresbedarf von mehr als \" & G46 & \" ME die Eigenfertigung kostengünstiger ist als der Fremdbezug!\")","v":"Dies bedeutet, dass bei einem Jahresbedarf von mehr als 1390 ME die Eigenfertigung kostengünstiger ist als der Fremdbezug!"}]
[null,null,"Unterhalb dieser Grenze ist der Fremdbezug kostengünstiger!"]

{"sheet":"Blanko1","index":15,"n_rows":0,"n_cols":0,"rows_kept":0,"cut":false,"hidden":true,"merged":[]}